{"text_format":"1","workbook":"xlsx","n_sheets":2,"sheets":["Krycí list rozpočtu","rozpočet"],"not_rendered":{"charts":0,"images":0,"macros":0,"external_links":0,"defined_names":1,"comments":0,"pivot_tables":0},"unopened":[],"bounds":{"document_bytes":16777216,"sheet_cells":100000,"rows_first":2000,"rows_last":500,"rows_between":2000,"halvings":0,"cell_chars":16384,"cell_head_chars":4096},"cells_cut":0,"cells_raw":0,"read":"whole","date_system":"1900"}

{"sheet":"Krycí list rozpočtu","index":0,"n_rows":32,"n_cols":9,"rows_kept":32,"cut":false,"hidden":false,"merged":[[31,0,31,2],[31,3,31,5],[31,6,31,8],[29,0,29,2],[29,3,29,5],[29,6,29,8],[30,0,30,2],[30,3,30,5],[30,6,30,8],[27,0,27,2],[27,3,27,5],[27,6,27,8],[28,0,28,2],[28,3,28,5],[28,6,28,8],[23,0,23,1],[24,0,24,1],[24,3,24,4],[24,6,24,7],[25,0,25,1],[25,3,25,4],[25,6,25,7],[20,0,20,1],[20,3,20,4],[20,6,20,7],[21,0,21,1],[21,3,21,4],[21,6,21,7],[17,3,17,4],[17,6,17,7],[18,3,18,4],[18,6,18,7],[19,0,19,1],[19,3,19,4],[19,6,19,7],[14,3,14,4],[14,6,14,7],[15,3,15,4],[15,6,15,7],[16,3,16,4],[16,6,16,7],[11,0,11,8],[12,1,12,2],[12,4,12,5],[12,7,12,8],[13,3,13,4],[13,6,13,7],[7,8,8,8],[9,0,10,1],[9,2,10,3],[9,4,10,4],[9,5,10,6],[9,7,10,7],[9,8,10,8],[7,0,8,1],[7,2,8,3],[7,4,8,4],[7,5,8,6],[7,7,8,7],[3,8,4,8],[5,0,6,1],[5,2,6,3],[5,4,6,4],[5,5,6,6],[5,7,6,7],[5,8,6,8],[3,0,4,1],[3,2,4,3],[3,4,4,4],[3,5,4,6],[3,7,4,7],[0,0,0,8],[1,0,2,1],[1,2,2,3],[1,4,2,4],[1,5,2,6],[1,7,2,7],[1,8,2,8]]}
["Krycí list rozpočtu"]
["Název stavby:",null,"II/240 Černuc - hranice stř.kraje",null,"Objednatel:","KSÚS Středočeského kraje příspěvková organizace",null,"IČ/DIČ:","00066001"]
[]
["Druh stavby:",null,"Oprava živičného krytu, lokální sanace ložné vrstvy, úprava krajnic, obnova VDZ",null,"Projektant:",null,null,"IČ/DIČ:"]
[]
["Lokalita:",null,"st. 27,310 km - 30,470km",null,"Zhotovitel:",null,null,"IČ/DIČ:"]
[]
["Začátek výstavby:",null,"stavební sezona 2023",null,"Konec výstavby:",null,null,"Položek:"]
[]
["JKSO:",null," ",null,"Zpracoval:","Michal Kovanda",null,"Datum:","2023-02-22"]
[]
["Rozpočtové náklady v Kč"]
["A","Základní rozpočtové náklady",null,"B","Doplňkové náklady",null,"C","Náklady na umístění stavby (NUS)"]
["HSV","Dodávky",{"$f":"SUM(rozpočet!F31)","v":0},"Práce přesčas",null,0,"Zařízení staveniště",null,0]
[null,"Montáž",0,"Bez pevné podl.",null,0,"Mimostav. doprava",null,0]
["PSV","Dodávky",0,"Kulturní památka",null,0,"Územní vlivy",null,0]
[null,"Montáž",0,null,null,null,"Provozní vlivy",null,0]
["\"M\"","Dodávky",0,null,null,null,"Ostatní",null,0]
[null,"Montáž",0,null,null,null,"NUS z rozpočtu",null,0]
["Ostatní materiál",null,0]
["Přesun hmot a sutí",null,0]
["ZRN celkem",null,{"$f":"SUM(C14:C21)","v":0},"DN celkem",null,{"$f":"SUM(F14:F21)","v":0},"NUS celkem",null,{"$f":"SUM(I14:I21)","v":0}]
[]
["Základ 0%",null,0]
["Základ 15%",null,0,"DPH 15%",null,{"$f":"ROUND(C25*(14/100),2)","v":0},"Celkem bez DPH",null,{"$f":"SUM(C24:C26)","v":0}]
["Základ 21%",null,{"$f":"C22+F22*I22","v":0},"DPH 21%",null,{"$f":"ROUND(C26*(21/100),2)","v":0},"Celkem včetně DPH",null,{"$f":"SUM(F25:F26)+I25","v":0}]
[]
["Projektant",null,null,"Objednatel",null,null,"Zhotovitel"]
[]
[]
[]
["Datum, razítko a podpis",null,null,"Datum, razítko a podpis",null,null,"Datum, razítko a podpis"]

{"sheet":"rozpočet","index":1,"n_rows":34,"n_cols":10,"rows_kept":34,"cut":false,"hidden":false,"merged":[[0,0,0,5]]}
[" "]
["Stavba:    II/240 Černuc - hranice stř.kraje",null," "]
["Objekt:    sil.     II/240        km  27,310 km - 30,470"]
[]
[]
["Objednatel:   Krajská správa a údržba silnic Středočeského kraje, příspěvková organizace"]
["Zhotovitel: ",null,null,"Zpracoval:   ","Michal Kovanda"," ","Zpracoval:   "]
["rozpočet",null,null,"Datum:   ","2023-02-22"," ","Datum:   "]
[null,null,null,null," "]
[null,1]
["Číslo položky   OTSKP","Popis položky","MJ","Výměra","Kč/MJ","Celkem Kč","hmotnost              t","hmotnost  celkem",null,"poznámky"]
["R položka","DIO  vč. zajištění, zjištění a vytyčení inž. sítí , geodetické zaměření stavby","kpl",1,0,{"$f":"E12*D12","v":0}]
[113728,"frézování  asfalt. Ploch , odvoz do 20km","m3",784,0,0," "," "]
["R položka","poplatky za likvidaci nebezpečných odpadů -   vybourané obalované kamenivo kontaminované dehtem ","t",200,0,0,null,null,null," "]
[122938,"odkopávky a prokopávky obecné tř. III, odvoz do 20km (hl. 360mm)","m3",90,0,0]
[56336,"vozovkové vrstvy ze štěrkodrti tl. 300mm","m2",250,0,0]
[572141,"infiltrační postřik asfalt. do 2,0 kg/m2","m2",250,0,0]
["574E58","asfaltový beton pro podkladní   ACP 22+,  tl. 60mm","m2",250,0,0]
[93818,"čištění vozovek samosběrem","m2",19600,0,0,null,null,null," "]
["574D06","vyrovnávka - ASFALTOVÝ BETON PRO LOŽNÍ VRSTVY MODIFIK ACL 16+, 16S","m3",155,0,0]
[572223,"spojovací postřik ze sil. emulze do 1,0kg/m2","m2",19600,0,0]
["574B44","ASFALTOVÝ BETON PRO OBRUSNÉ VRSTVY MODIFIK ACO 11+, 11S TL. 50MM","m2",19600,0,0]
[113761,"frézování spár š. do 10mm , hl. do 20mm","m",3200,0,0,null,null,null," "]
[931312,"Zalévání spár dilatační asf. zálivkou  ","m",3200,0,0,null,null,null," "]
[12922,"čištění krajnic od nánosu  tl do 100 mm s odvozem na skládku","m2",3100,0,0,0.126,{"$f":"D25*G25","v":390.6}]
[56962,"zpevnění krajnic z recyklátu do tl. 100mm  ","m2",2050,0,0]
["015112","poplatky za likvidaci odpadu nekontaminovaných","t",550,0,0]
[915211,"VDZ - vodící proužky  V2 -12,5 , přechod pro chodce atd.,  plast, retroreflexní ","m2",60,0,0]
[915111,"VDZ V2 - 12,5 cm , barvou,  základní","m2",400,0,0]
[915111,"VDZ V2 - 25 cm , barvou,  základní","m2",1600,0,0,null,null,null," "]
[null,"Celkem bez DPH",null,null," ",{"$f":"SUM(F12:F30)","v":0}]
[null,"DPH 21%",null,null," ",{"$f":"F31*0.21","v":0}]
[null,"Celkem vč. DPH",null,null," ",{"$f":"F32+F31","v":0}]
[null,"Žlutě zvýrazněná pole vyplní uchazeč"]